Cogmind - Beta 14 @@@ ROGUE MODE // 2024.09.07 @ 16:41:51 Player: TapeIsSticky Result: Destroyed by 8R-AWN with 8R-AWN's Boregun Performance ------------- Evolutions (0) 0 Regions Visited (3) 600 Robots Destroyed (30) 150 Value Destroyed (537) 537 Prototype IDs (0) 0 Alien Tech Used (0) 0 Bonus (0) 0 TOTAL SCORE: 1287 Bonus ------- None Cogmind --------- Core Integrity 0/250 Matter 274/300 Energy 100/100 System Corruption 2% Temperature Cool (0) Movement Treading (160) Location -10/Exiles Parts ------- > --- POWER (1) -------- (None) > --- PROPULSION (2) --- Light Treads > --- UTILITY (2) ------ (None) > --- WEAPON (2) ------- Light Assault Rifle > --- INVENTORY (5) ---- Grenade Launcher Peak State ------------ > --- POWER ------------ Ion Engine > --- PROPULSION ------- Light Treads Light Treads > --- UTILITY ---------- Large Storage Unit High-capacity Storage Unit > --- WEAPON ----------- EM Shotgun EM Shotgun > --- INVENTORY -------- Ion Engine Ion Engine Light Ion Engine Light Treads Light Treads Light Treads Light Treads Light Treads Aluminum Leg Aluminum Leg Wheel Compact Wheel Signal Interpreter Hacking Suite EM Shotgun EM Shotgun Medium Laser Light Assault Rifle [Rating: 11] Favorites ----------- Power Ion Engine Engine Ion Engine Propulsion Light Treads Treads Light Treads Utility High-capacity Storage Unit Storage High-capacity Storage Unit Protection Light Armor Plating Weapon EM Shotgun Energy Gun EM Shotgun Ballistic Gun Light Assault Rifle Launcher Grenade Launcher Build | -11 -10 -10 -10 ------- Run | Yrd Mat Min Exi Slots Evolved . | . . . . Power . | . . . . Propulsion . | . . . . Utility . | . . . . Weapon . | . . . . Parts Attached 30 | 6 13 4 7 Power 4 | 1 2 . 1 Engine 4 | 1 2 . 1 Core . | . . . . Reactor . | . . . . Propulsion 9 | 2 5 1 1 Treads 9 | 2 5 1 1 Leg . | . . . . Wheel . | . . . . Hover . | . . . . Flight . | . . . . Utility 6 | 1 2 1 2 Device . | . . . . Storage 3 | 1 2 . . Processor . | . . . . Hackware . | . . . . Protection 3 | . . 1 2 Artifact . | . . . . Weapon 11 | 2 4 2 3 Energy Gun 4 | 1 2 1 . Energy Cannon . | . . . . Ballistic Gun 5 | 1 2 . 2 Ballistic Cannon . | . . . . Launcher 2 | . . 1 1 Special Weapon . | . . . . Impact Weapon . | . . . . Slashing Weapon . | . . . . Piercing Weapon . | . . . . Special Melee Weapon . | . . . . Unidentified Prototypes . | . . . . Parts Lost 7 | . . . 7 Power 1 | . . . 1 Propulsion 2 | . . . 2 Utility 3 | . . . 3 Weapon 1 | . . . 1 Highest Loss Streak 7 | . . . 7 To Critical Strikes 4 | . . . 4 Average Slot Usage (%) 87 | . 87 100 75 Engine 13 | . 14 14 13 Treads 27 | . 27 28 27 Storage 16 | . 17 19 10 Protection 6 | . . 8 16 Energy Gun 12 | . 12 23 . Ballistic Gun 8 | . 14 . 5 Launcher 1 | . . 4 1 Peak Build Rating 11 | 6 11 11 11 Average Rating 8 | 4 7 10 7 On Entrance 7 | . 6 11 11 Naked Turns . | . . . . Heaviest Build 71 | 11 71 71 54 Greatest Support 40 | 40 40 40 40 Greatest Overweight (x) 2 | . 1 2 1 Average Overweight (x) . | . . 1 . Largest Inventory Capacity 20 | 8 20 20 20 Average Capacity 16 | 7 15 20 15 Most Carried 20 | 6 19 20 20 Average Carried 14 | 4 12 19 12 Final Capacity 20 | 8 20 20 5 Final Carried 19 | 6 19 19 1 Class Distribution -------------------- 100% | Mutant Dominant Class ---------------- Mutant | -10/Materials Mutant | -10/Mines Mutant | -10/Exiles Resources | -11 -10 -10 -10 ----------- Run | Yrd Mat Min Exi Matter Collected 913 | 206 389 106 212 Remotely . | . . . . Salvage Created 883 | . 543 340 . Parts 59 | . 30 29 . Haulers Intercepted 2 | . 2 . . Recyclers Shooed 1 | . 1 . . Parts Field Recycled . | . . . . Retrieved Matter . | . . . . Parts Self-Destructed . | . . . . Prevented . | . . . . Kills | -11 -10 -10 -10 ------- Run | Yrd Mat Min Exi Combat Hostiles Destroyed 20 | . 9 11 . Guns 14 | . 8 6 . AOE 6 | . 1 5 . Classes Destroyed 8 | . 6 2 . Worker 1 | . 1 . . Hauler 2 | . 2 . . Recycler 2 | . . 2 . Operator 2 | . 2 . . Watcher 3 | . 3 . . Swarmer 12 | . 3 9 . Grunt 6 | . 6 . . Sentry 2 | . . 2 . Best Kill Streak 4 | . 3 4 . Combat Bots Only 3 | . 3 3 . Max Kills in Single Turn 2 | . 1 2 . Gunslinging . | . . . . Exploded 2 | . 1 2 . Melee . | . . . . Uniques/NPCs Destroyed . | . . . . Combat | -11 -10 -10 -10 -------- Run | Yrd Mat Min Exi Hostile Shots Fired 152 | . 52 37 63 Missed 36 | . 16 8 12 Damage Taken 1539 | . 372 291 876 Core 252 | . 42 47 163 Absorbed by Shields . | . . . . Core Remaining (%) 100 | 100 . . . Volleys Fired 130 | . 75 17 38 Largest 2 | . 2 2 2 Hottest 90 | . 90 90 43 Shots Fired 209 | . 130 30 49 Gun 204 | . 130 26 48 Cannon . | . . . . Launcher 5 | . . 4 1 Special . | . . . . Kinetic 130 | . 82 . 48 Thermal 24 | . 24 . . Explosive 5 | . . 4 1 Electromagnetic 50 | . 24 26 . Robot Hit Streak 16 | . 12 13 16 Robot Miss Streak 6 | . 6 3 2 Penetration Max . | . . . . Secondary Targets 1 | . 1 . . Max Gunslinging Chain 1 | . 1 . . Shots Hit Robots 138 | . 80 17 41 Core Hits 62 | . 31 21 10 Critical Kills . | . . . . Critical Parts Destroyed 1 | . 1 . . Critical Strikes 1 | . 1 . . Destroy 1 | . 1 . . Melee Attacks . | . . . . Impact . | . . . . Slashing . | . . . . Piercing . | . . . . Sneak Attacks . | . . . . Combat Hostiles . | . . . . Follow-up Attacks . | . . . . Damage Inflicted 1891 | . 1017 473 401 Guns 1607 | . 970 236 401 Cannons . | . . . . Explosions 261 | . 24 237 . Melee . | . . . . Ramming 23 | . 23 . . Kinetic 897 | . 496 . 401 Thermal 261 | . 213 48 . Explosive 189 | . . 189 . Electromagnetic 521 | . 285 236 . Impact . | . . . . Slashing . | . . . . Piercing . | . . . . Highest Corruption 2 | . 2 2 2 Average Corruption 1 | . 1 2 2 Corruption Purged . | . . . . Corruption Blocked . | . . . . Effects 45 | . 19 14 12 Message Errors 17 | . 8 6 3 Matter Fused 6 | . 5 . 1 Heat Flow Errors 8 | . 3 3 2 Energy Discharges 5 | . 2 2 1 Data Loss (minor) 5 | . 1 1 3 Data Loss (major) 1 | . . . 1 Misfires 1 | . . 1 . Alerts 1 | . . . 1 Weapon Failures 1 | . . 1 . Overload Shots . | . . . . Overflow Damage . | . . . . Projectiles . | . . . . Explosions . | . . . . Melee . | . . . . Knockbacks . | . . . . Impact . | . . . . Kinetic . | . . . . Secondary . | . . . . Self-Inflicted Damage . | . . . . Shots . | . . . . Rammed 7 | . 7 . . Targets Rammed 7 | . 7 . . Kicked . | . . . . Crushed . | . . . . Highest Temperature 380 | . 219 380 281 Average Temperature 84 | . 57 133 67 Received Heat Transfer 219 | . 165 54 . Effects 4 | . . 4 . Shutdowns 1 | . . 1 . Matter Decay 2 | . . 2 . Short Circuit 1 | . . 1 . Siege Activations . | . . . . Robots Corrupted . | . . . . Combat Hostiles . | . . . . Parts Fried 3 | . 1 2 . Impact Corruptions . | . . . . Robots Melted . | . . . . Combat Hostiles . | . . . . Parts Melted 1 | . 1 . . Heat Transferred 525 | . 475 50 . Parts Sabotaged . | . . . . Parts Stolen . | . . . . Parts Stripped . | . . . . Power Chain Reactions 3 | . 1 2 . Alert | -11 -10 -10 -10 ------- Run | Yrd Mat Min Exi Peak Influence 254 | . 204 254 . Initial 7 | . . 7 . Average 53 | . 33 95 . Maximum Alert Level 1 | . 1 1 . Low Security (%) 94 | 100 97 89 . Level 1 5 | . 2 10 . Level 2 . | . . . . Level 3 . | . . . . Level 4 . | . . . . Level 5 . | . . . . High Security . | . . . . Max Security . | . . . . Squads Dispatched 1 | . 1 . . Investigation . | . . . . Extermination . | . . . . Reinforcement 1 | . 1 . . Assault . | . . . . Garrison . | . . . . Intercept . | . . . . Searches Triggered . | . . . . Construction Impeded . | . . . . Haulers Reinforced . | . . . . Active Scanning Responses . | . . . . Cargo Convoy Interrupts . | . . . . Stealth | -11 -10 -10 -10 --------- Run | Yrd Mat Min Exi Distress Signals 3 | . 3 . . Communications Jammed . | . . . . Distress Signals . | . . . . Times Spotted 38 | . 27 10 1 Peak Tracking Total 9 | . 5 3 9 Tactical Retreats . | . . . . Traps | -11 -10 -10 -10 ------- Run | Yrd Mat Min Exi Traps Triggered 3 | . 3 . . Indirectly . | . . . . Trap Hack Attempts . | . . . . Triggered . | . . . . Disarmed . | . . . . Reprogrammed . | . . . . Reused . | . . . . Traps Extracted . | . . . . Installed . | . . . . Triggered . | . . . . Machines | -11 -10 -10 -10 ---------- Run | Yrd Mat Min Exi Machines Disabled 1 | . . . 1 Max in Single Turn 1 | . . . 1 Machines Repaired . | . . . . Machines Dismantled . | . . . . Machines Sabotaged . | . . . . Overloaded Fab Kills . | . . . . Hacking | -11 -10 -10 -10 --------- Run | Yrd Mat Min Exi Machines Accessed 4 | . 4 . . Terminals 4 | . 4 . . Fabricators . | . . . . Repair Stations . | . . . . Recycling Units . | . . . . Scanalyzers . | . . . . Garrison Access . | . . . . Total Hacks 8 | . 8 . . Successful 2 | . 2 . . Failed 5 | . 5 . . Catastrophic 3 | . 3 . . Database Lockouts 1 | . 1 . . Manual 12 | . 12 . . Terminals 8 | . 8 . . Fabricators . | . . . . Repair Stations . | . . . . Recycling Units . | . . . . Scanalyzers . | . . . . Garrison Access . | . . . . Terminal Hacks 2 | . 2 . . Robot Analysis 1 | . 1 . . Branch Access Points 1 | . 1 . . Fabricator Hacks . | . . . . Repair Station Hacks . | . . . . Recycling Unit Hacks . | . . . . Scanalyzer . | . . . . Garrison Access Hacks . | . . . . Unauthorized Hacks . | . . . . Terminals . | . . . . Fabricators . | . . . . Repair Stations . | . . . . Recycling Units . | . . . . Scanalyzers . | . . . . Garrison Access . | . . . . Data Cores Recovered 1 | . 1 . . Used . | . . . . Hacking Detections 4 | . 4 . . Full Trace Events . | . . . . Feedback Events . | . . . . Feedback Blocked . | . . . . Robot Schematics Acquired . | . . . . Robots Built . | . . . . Authchips . | . . . . Time . | . . . . Total Robot Build Rating . | . . . . Part Schematics Acquired . | . . . . Parts Built . | . . . . Authchips . | . . . . Time . | . . . . Total Part Build Rating . | . . . . Parts Repaired . | . . . . Time . | . . . . Parts Recycled . | . . . . Recycled Matter . | . . . . Retrieved Matter . | . . . . Retrieved Components . | . . . . Parts Scanalyzed . | . . . . Part Schematics Acquired . | . . . . Parts Damaged . | . . . . Bothacking | -11 -10 -10 -10 ------------ Run | Yrd Mat Min Exi Used RIF Installer . | . . . . Robots Hacked . | . . . . Non-combat . | . . . . Combat . | . . . . Robot Hacks Applied . | . . . . Relay Couplers Released . | . . . . Fabnet Peak Effective % . | . . . . Robots Rewired . | . . . . Allies Hacked . | . . . . Hacks Repelled . | . . . . Allies | -11 -10 -10 -10 -------- Run | Yrd Mat Min Exi Total Allies 1 | . . 1 . Largest Group 1 | . . 1 . Highest-Rated Group 31 | . . 31 . Highest-Rated Ally 31 | . . 31 . Total Orders . | . . . . Ally Attacks . | . . . . Total Damage . | . . . . Kills . | . . . . Allies Corrupted . | . . . . Allies Melted . | . . . . Intel | -11 -10 -10 -10 ------- Run | Yrd Mat Min Exi Robot Analysis Total 1 | . 1 . . Derelict Logs Recovered . | . . . . Drone Launches . | . . . . Drone Recoveries . | . . . . Exploration | -11 -10 -10 -10 ------------- Run | Yrd Mat Min Exi Turns Passed 3162 | 117 1437 829 779 Spaces Moved 1320 | 66 657 318 279 Core 3 | 3 . . . Treads 1317 | 63 657 318 279 Legs . | . . . . Wheels . | . . . . Hover . | . . . . Flight . | . . . . Fastest Speed 50 | 50 160 240 160 Average Speed 202 | 155 178 240 225 Slowest Speed 320 | 160 240 320 240 Overloaded Moves . | . . . . Propulsion Burnouts . | . . . . Robots Hopped . | . . . . Cave-ins Triggered . | . . . . Exploration Rate (%) 49 | 4 96 47 51 Regions Visited 3 Branch Regions 2 Pre-discovered Areas . | . . . . Known Exits Taken 1 | . 1 . . Unknown Exits Taken 2 | 1 . 1 . Scrap Searched 1 | . . 1 . Spaces Dug 7 | . . 7 . Terrain Destroyed 34 | . 4 25 5 Melee . | . . . . Projectile . | . . . . AOE 34 | . 4 25 5 Terrain Rammed . | . . . . Walls Destroyed . | . . . . Machines Disabled . | . . . . Actions | -11 -10 -10 -10 --------- Run | Yrd Mat Min Exi Total 1617 | 78 785 356 398 Wait 72 | . 25 6 41 Move 1317 | 65 656 317 279 Hop . | . . . . Pick Up 28 | 7 8 6 7 Fast Attach 12 | 5 4 . 3 Attach 4 | 1 1 . 2 Detach . | . . . . Swap 14 | . 8 4 2 Drop 33 | . 1 6 26 Fire 130 | . 75 17 38 Melee . | . . . . Ram . | . . . . Kick . | . . . . Crush 7 | . 7 . . Escape Stasis . | . . . . Rewire . | . . . . Trap . | . . . . Miscellaneous . | . . . . Route ------- -11/Scrapyard -10/Materials (discovered 5 exits: [*Mat x3] / *Min x2) -10/Mines (discovered 2 exits: [*Mat] / [*Exi]) -10/Exiles (discovered 1 exit: [*Min]) History --------- Turn | Location | Event 25 | -11/Scrapyard | Discovered new exit (range 16) 118 | -11/Scrapyard | Entered Materials 160 | -10/Materials | Identified exit to Mines 189 | -10/Materials | Discovered new exit (range 16) 300 | -10/Materials | Build established: Mutant 440 | -10/Materials | Discovered new exit (range 10) 756 | -10/Materials | Central database locked down 1027 | -10/Materials | Discovered new exit (range 16) 1555 | -10/Materials | Entered Mines 1921 | -10/Mines | Joined a pair of Derelicts in attacking an 0b10 outpost 2112 | -10/Mines | Received a Mining Laser from a helpful Derelict 2319 | -10/Mines | Discovered new exit (range 4) 2372 | -10/Mines | Deemed a non-threat by the Exiles lab entrance 2374 | -10/Mines | Discovered new exit (range 5) 2384 | -10/Mines | Entered Exiles 2463 | -10/Exiles | Discovered new exit (range 14) 2506 | -10/Exiles | Met 8R-AWN 2542 | -10/Exiles | Met EX-HEX 2718 | -10/Exiles | Met EX-DEC 2990 | -10/Exiles | Attacked by the Exiles 3101 | -10/Exiles | Core integrity fell below 50% 3142 | -10/Exiles | Core integrity fell below 20% 3163 | -10/Exiles | Destroyed by 8R-AWN with 8R-AWN's Boregun Last Messages --------------- 03134_ HV Slug penetrates Wall. 03137_ Penetrated by HV Slug. 03137_ HV Slug penetrates Wall. 03137_ Penetrated by HV Slug. 03137_ HV Slug penetrates Wall. 03141_ Penetrated by HV Slug. 03141_ HV Slug penetrates Wall. 03141_ Penetrated by HV Slug. 03141_ HV Slug penetrates Wall. 03146_ Wall collapses. 03146_ Penetrated by HV Slug. 03146_ Critical hit (Destroy). 03146_ Lgt. Armor Plating destroyed. 03146_ Penetrated by HV Slug. 03150_ HV Slug penetrates Wall. 03150_ HV Slug penetrates Earth. 03154_ Penetrated by HV Slug. 03158_ Critical hit (Destroy). 03158_ Ion Engine destroyed. 03158_ Penetrated by HV Slug. Map ----- +----------------------------------------------------+ | ?????????????????????????????????????????????????? | | ?????????????????????????????????????????????????? | | ?????????????????????????????????????????????????? | | ?????????????????????????????????????????????????? | | ?????????????????????????????????????????????????? | | ?????????????????????????????????????????????????? | | ?????????????????????????????????????????????????? | | ?????????????????????????????????????????????????? | | ?????????????????????????????????????????????????? | | ?????????????????????????????????????????????????? | | ???????????????????????????????#######???????????? | | ????????????????? ######???????#!!! "#???????????? | | ???????????????? #""#??????# "#???????????? | | ???????????????? ??????# "#???????????? | | ???????????????" #????## ""#???????????? | | ???????????????? #####" ""#???????????? | | ????????????????# ##" ""????????????? | | ?????????????????# #"" #?????????????? | | ????????????????????# #?????????????? | | ???????????????????????# ##????????????? | | ????????????????????????## "####?????????? | | ?????????????????########" """#?????????? | | ?????????????????# !!""""" "#?????????? | | ?????????????????#!! ! g ###"" % ######????# | | ?????????????????#!=! [[==! #?##" ""#####X | | ?????????????????#! ** @ !##??#" * | | ?????????????????# !"""" ;;; #?#"# | | ?????????????????######;#;# ###?#### * | | ?????????????????????# # #??????### | | ????????????????????# ## ## #????????### | | ???????????????????# #? ?# #??????????## | | ??????????????????# #?# #?# #???????????## | | ?????????????????# #?? ??# #????????????##" | | ????????????????# #??# #??# #?????????????#""" | | ???????????????? #???##???? ?????????????##" | | ??????????????? ??????????? ?????????????#"" | | ?????????????? ???????????? ?????????????#""" | | ??????????????????????????? ????????????#""" | | ??????????????????????????? ????????????#""" | | ??????????????????????????? ????????????#"" | | ??????????????????????????? ????????????#""" | | ????????????????????????????????????????#"" | | ????????????????????????????????????????##"" | | ?????????????????????????????????????????#"""" | | ??????????????????????????????????????????# | | ??????????????????????????????????????????#" | | ??????????????????????????????????????????#"""" | | ??????????????????????????????????????????#"" | | ???????????????????????????????????????????" | | ???????????????????????????????????????????""" | +----------------------------------------------------+ Best States ------------- Heat Dissipation 25 Energy Generation 10 Energy Capacity 250 Matter Stores 300 Matter Capacity 300 Sight Range 16 Terrain Scan Density 10 Armor Coverage 300 Evasion (%) 40 Recoil Reduction 2 Item Schematics ----------------- None Robot Schematics ------------------ None Fabricated ------------ Nothing Alien Tech Used ----------------- None Achievements -------------- None Challenges ------------ None Game ------ Seed BombOvertunedStreamer Manual? 0 Play Time 00:20:00 Cumulative 45.6 hours Start 2024.09.07 @ 16:19:21 End 2024.09.07 @ 16:41:51 Sessions 1 Manual Loads 0 Difficulty Rogue Special Mode None Game No. 48 Rogue 48 Adventurer 0 Explorer 0 Win Type - Total 2 Types 2/0/0/0/0/0/0/0/0 Lore% 26 Gallery% 35 Achievement% 40 Wizard Run 0 Options --------- Layout 1 ASCII 0 Keyboard 0 Movement Arrows Keybinds 0 Fullscreen 1 Font 24/Tamsyn Map View 50x35 Zoom Use 0% Tactical HUD 1 Map Filters NONE Filters NONE Steam 1 RUN: 6ab10f14-c89e-42f9-b166-73154d8555ca